bitfinex/quotes_BTCUSD_20250617
["timestamp","ask_amount","ask_price","bid_price","bid_amount"]
[1750132056803,0.00247214,107770.0,107760.0,1.39617822]
[1750132057456,0.00247214,107770.0,107760.0,1.13148948]
[1750132057664,0.03030789,107770.0,107760.0,0.54024772]
[1750132057884,0.04886584,107770.0,107760.0,0.65799461]
[1750132058359,0.03958751,107770.0,107760.0,0.64299479]
[1750132058577,0.03958751,107770.0,107760.0,0.48691479]
[1750132058808,0.00247214,107770.0,107760.0,1.38676005]
[1750132059039,0.01,107780.0,107770.0,0.58481641]
[1750132059265,0.01,107780.0,107770.0,1.01140646]
[1750132059911,0.01,107780.0,107770.0,1.09140646]
[1750132061556,0.01,107780.0,107770.0,1.09240646]
[1750132062180,0.01,107780.0,107770.0,1.46764646]
[1750132062609,0.01,107780.0,107770.0,1.19166806]
[1750132062760,0.01,107780.0,107770.0,1.44764646]
[1750132063375,0.01,107780.0,107770.0,1.29240646]
[1750132063584,0.01927747,107780.0,107770.0,1.24764646]
[1750132064218,0.03783283,107780.0,107770.0,0.58193598]
[1750132064431,0.21411906,107780.0,107770.0,0.08114117]
[1750132064643,0.20484125,107780.0,107770.0,0.08114117]
[1750132064863,0.20484125,107780.0,107770.0,0.52269997]
[1750132064864,0.01,107780.0,107770.0,0.52269997]
[1750132065076,0.27395408,107780.0,107770.0,0.69653757]
[1750132065299,0.2646767,107780.0,107770.0,0.6872589]
[1750132065513,0.25539906,107780.0,107770.0,0.5319789]
[1750132065731,0.25539906,107780.0,107770.0,0.54025774]
[1750132065975,0.25639906,107780.0,107770.0,0.54025774]
[1750132066217,0.21511906,107780.0,107770.0,0.2935581]
[1750132066427,0.24912125,107780.0,107770.0,0.08014117]
[1750132067974,0.26512125,107780.0,107770.0,0.00014117]
[1750132069886,0.51648301,107780.0,107770.0,0.00014117]
[1750132070539,0.53102386,107780.0,107770.0,0.00014117]
[1750132070750,0.54762386,107780.0,107770.0,0.00014117]
[1750132073077,0.55649167,107780.0,107770.0,0.00014117]
[1750132076975,0.36009167,107780.0,107770.0,0.00014117]
[1750132077186,0.55621167,107780.0,107770.0,0.00014117]
[1750132079069,0.35122386,107780.0,107770.0,0.00014117]
[1750132079280,0.013,107780.0,107770.0,0.5778842]
[1750132079491,0.02227747,107780.0,107770.0,0.5755647]
[1750132079929,0.03155519,107780.0,107770.0,0.5755647]
[1750132080132,0.03155511,107780.0,107770.0,0.5755647]
[1750132080346,0.02227747,107780.0,107770.0,0.5755647]
[1750132080553,0.03155511,107780.0,107770.0,0.5755647]
[1750132081256,0.19856318,107780.0,107770.0,0.01544117]
[1750132081479,0.21711888,107780.0,107770.0,0.00014117]
[1750132081690,0.20784116,107780.0,107770.0,0.00014117]
[1750132082341,0.40364116,107780.0,107770.0,0.00014117]
[1750132083296,0.51442377,107780.0,107770.0,0.00014117]
[1750132084683,0.52972377,107780.0,107770.0,0.00014117]
[1750132086973,0.55192208,107780.0,107770.0,0.00014117]
[1750132088135,1.16410048,107780.0,107770.0,0.00014117]
[1750132088826,0.90812208,107780.0,107770.0,0.00014117]
[1750132089265,0.90512208,107780.0,107770.0,0.00014117]
[1750132089483,0.91012208,107780.0,107770.0,0.00014117]
[1750132089958,1.40986765,107780.0,107770.0,0.00014117]
[1750132090199,1.50601687,107780.0,107770.0,0.00014117]
[1750132092195,1.54321871,107780.0,107770.0,0.00014117]
[1750132093300,1.57163493,107780.0,107770.0,0.00014117]
[1750132093751,1.56663493,107780.0,107770.0,0.00014117]
[1750132094007,1.61363493,107780.0,107770.0,0.00014117]
[1750132094222,1.58243309,107780.0,107770.0,0.00014117]
[1750132094440,1.58643309,107780.0,107770.0,0.00014117]
[1750132094662,1.63643309,107780.0,107770.0,0.00014117]
[1750132094888,6.63162385,107780.0,107770.0,0.00014117]
[1750132095113,0.59131657,107750.0,107740.0,0.002]
[1750132095335,1.23886792,107750.0,107740.0,0.00247214]
[1750132095551,1.74951026,107750.0,107740.0,0.00247214]
[1750132095987,1.76005192,107750.0,107740.0,0.00247214]
[1750132096456,1.76005192,107750.0,107740.0,0.00547214]
[1750132096682,1.56461192,107750.0,107740.0,0.00547214]
[1750132096891,1.76005192,107750.0,107740.0,0.00547214]
[1750132097545,1.76105192,107750.0,107740.0,0.00547214]
[1750132097946,1.26775192,107750.0,107740.0,0.00547214]
[1750132098374,1.26775192,107750.0,107740.0,0.00247214]
[1750132098595,1.26675192,107750.0,107740.0,0.00247214]
[1750132098817,1.26775192,107750.0,107740.0,0.00247214]
[1750132099041,1.27075192,107750.0,107740.0,0.00247214]
[1750132103057,0.81933352,107750.0,107740.0,0.00247214]
[1750132103273,1.24839361,107750.0,107740.0,0.00247214]
[1750132103687,1.27052177,107750.0,107740.0,0.00247214]
[1750132106979,1.32052177,107750.0,107740.0,0.00247214]
[1750132111989,6.4482842,107750.0,107740.0,0.00247214]
[1750132112247,6.4482842,107750.0,107720.0,0.002]
[1750132112248,0.50693287,107730.0,107720.0,0.002]
[1750132112537,1.46173201,107730.0,107720.0,0.002]
[1750132113035,1.61573779,107730.0,107720.0,0.002]
[1750132113259,1.06062808,107730.0,107720.0,0.002]
[1750132113492,1.13131324,107730.0,107720.0,0.002]
[1750132113748,1.31115324,107730.0,107720.0,0.002]
[1750132114181,1.28902508,107730.0,107720.0,0.002]
[1750132114392,1.516154,107730.0,107720.0,0.002]
[1750132114604,1.61230322,107730.0,107720.0,0.002]
[1750132115028,1.61930322,107730.0,107720.0,0.003]
[1750132115253,1.62630322,107730.0,107720.0,0.003]
[1750132116392,1.62626322,107730.0,107720.0,0.003]
[1750132116636,1.62626322,107730.0,107720.0,0.0193]
[1750132117091,1.62626322,107730.0,107720.0,0.003]
[1750132117959,1.62630322,107730.0,107720.0,0.003]
[1750132119350,2.11956322,107730.0,107720.0,0.003]
[1750132119536,2.14723239,107730.0,107720.0,0.003]
[1750132120020,2.17512339,107730.0,107720.0,0.003]
[1750132121169,1.97972339,107730.0,107720.0,0.003]
[1750132121381,2.17504339,107730.0,107720.0,0.003]
[1750132124526,2.21205997,107730.0,107720.0,0.003]
[1750132133418,2.1843908,107730.0,107720.0,0.003]
[1750132134728,2.2002908,107730.0,107720.0,0.003]
[1750132134971,1.84583149,107730.0,107720.0,0.003]
[1750132135169,2.25581567,107730.0,107720.0,0.003]
[1750132135595,1.84583149,107730.0,107720.0,0.003]
[1750132135809,2.25581567,107730.0,107720.0,0.003]
[1750132141013,2.21879909,107730.0,107720.0,0.003]
[1750132141240,2.25592639,107730.0,107720.0,0.003]
[1750132141439,2.21879909,107730.0,107720.0,0.003]
[1750132141608,2.10634987,107730.0,107720.0,0.0347]
[1750132141823,1.93849528,107730.0,107720.0,0.0347]
[1750132142036,1.78453528,107730.0,107720.0,0.0347]
[1750132142242,1.93849528,107730.0,107720.0,0.0347]
[1750132142451,1.88297041,107730.0,107720.0,0.0347]
[1750132142662,2.18411172,107730.0,107720.0,0.0347]
[1750132145255,2.23963659,107730.0,107720.0,0.0347]
[1750132145469,2.18411172,107730.0,107720.0,0.0347]
[1750132146340,2.21196812,107730.0,107720.0,0.0347]
[1750132146568,0.98917243,107730.0,107720.0,0.0347]
[1750132146783,0.58238668,107730.0,107720.0,0.0347]
[1750132147032,1.07634668,107730.0,107720.0,0.0347]
[1750132147251,1.09088753,107730.0,107720.0,0.0347]
[1750132147698,1.08388753,107730.0,107720.0,0.0337]
[1750132147903,1.08988753,107730.0,107720.0,0.0337]
[1750132148531,1.08288753,107730.0,107720.0,0.0337]
[1750132148735,1.07688753,107730.0,107720.0,0.0337]
[1750132148947,1.08288753,107730.0,107720.0,0.0337]
[1750132149154,1.0647507,107730.0,107720.0,0.0337]
[1750132149357,1.0587507,107730.0,107720.0,0.0337]
[1750132149567,1.08100952,107730.0,107720.0,0.0337]
[1750132149958,1.08500952,107730.0,107720.0,0.0337]
[1750132150860,1.0627507,107730.0,107720.0,0.0337]
[1750132152433,0.8681507,107730.0,107720.0,0.0337]
[1750132152871,1.0627507,107730.0,107720.0,0.0337]
[1750132153292,0.89979623,107730.0,107720.0,0.0337]
[1750132153471,1.05375623,107730.0,107720.0,0.0337]
[1750132153608,1.04975623,107730.0,107720.0,0.0337]
[1750132154024,1.05275623,107730.0,107720.0,0.0337]
[1750132154639,1.05375623,107730.0,107720.0,0.0337]
[1750132155559,1.05371623,107730.0,107720.0,0.0337]
[1750132156715,0.85915623,107730.0,107720.0,0.0337]
[1750132156893,1.05371623,107730.0,107720.0,0.0337]
[1750132159303,0.54525538,107730.0,107720.0,0.0337]
[1750132159502,0.69917538,107730.0,107720.0,0.0337]
[1750132161758,0.50461538,107730.0,107720.0,0.0337]
[1750132161950,0.69917538,107730.0,107720.0,0.0337]
[1750132162715,0.91870832,107730.0,107720.0,0.0337]
[1750132163281,0.94604732,107730.0,107720.0,0.0337]
[1750132167058,0.58713523,107730.0,107720.0,0.0337]
[1750132167285,0.72647438,107730.0,107720.0,0.0337]
[1750132175324,0.53031438,107730.0,107720.0,0.0337]
[1750132180439,0.33579438,107730.0,107720.0,0.0337]
[1750132180646,0.53023438,107730.0,107720.0,0.0337]
[1750132186967,0.73510298,107730.0,107720.0,0.0337]
[1750132187178,0.74964383,107730.0,107720.0,0.0337]
[1750132188160,0.54477523,107730.0,107720.0,0.0337]
[1750132188388,0.74964383,107730.0,107720.0,0.0337]
[1750132188799,0.54477523,107730.0,107720.0,0.0337]
[1750132189018,0.74964383,107730.0,107720.0,0.0337]
[1750132189613,0.54477523,107730.0,107720.0,0.0337]
[1750132190695,0.54477523,107730.0,107720.0,0.0177]
[1750132190991,0.54477523,107730.0,107720.0,0.0339]
[1750132193804,0.54477523,107730.0,107720.0,0.002]
[1750132194008,0.76524383,107730.0,107720.0,0.002]
[1750132194215,1.12024383,107730.0,107720.0,0.002]
[1750132194845,1.10524383,107730.0,107720.0,0.002]
[1750132197032,1.10527532,107730.0,107720.0,0.002]
[1750132197629,1.12127532,107730.0,107720.0,0.002]
[1750132198565,1.12123532,107730.0,107720.0,0.002]
[1750132198778,1.42228463,107730.0,107720.0,0.002]
[1750132199147,1.45017563,107730.0,107720.0,0.002]
[1750132199547,1.44517563,107730.0,107720.0,0.002]
[1750132199783,1.44217563,107730.0,107720.0,0.002]
[1750132200015,1.44617563,107730.0,107720.0,0.002]
[1750132200454,1.44917563,107730.0,107720.0,0.002]
[1750132200660,1.14812632,107730.0,107720.0,0.002]
[1750132202000,1.35302641,107730.0,107720.0,0.002]
[1750132205845,1.40302641,107730.0,107720.0,0.002]
[1750132206092,1.40302641,107730.0,107700.0,0.002]
[1750132206093,0.59179239,107710.0,107700.0,0.002]
[1750132206331,1.25159433,107710.0,107700.0,0.002]
[1750132206540,1.04669424,107710.0,107700.0,0.002]
[1750132207289,0.65550609,107710.0,107700.0,0.0327]
[1750132207516,0.85486609,107710.0,107700.0,0.0327]
[1750132209563,0.85786609,107710.0,107700.0,0.0327]
[1750132209771,1.06276618,107710.0,107700.0,0.0327]
[1750132210172,0.66350609,107710.0,107700.0,0.0327]
[1750132210350,0.70406609,107710.0,107700.0,0.0327]
[1750132210569,0.85786609,107710.0,107700.0,0.0327]
[1750132211555,0.66350609,107710.0,107700.0,0.0327]
[1750132211772,0.34952524,107710.0,107700.0,0.23760009]
[1750132211986,0.21272348,107710.0,107700.0,0.23760009]
[1750132212193,0.25328348,107710.0,107700.0,0.23760009]
[1750132212400,0.24828348,107710.0,107700.0,0.23760009]
[1750132212612,0.24528348,107710.0,107700.0,0.24677702]
[1750132212791,0.24828348,107710.0,107700.0,0.24677702]
[1750132213429,0.24628348,107710.0,107700.0,0.24777702]
[1750132213625,0.20672348,107710.0,107700.0,0.44276291]
[1750132213861,0.20672348,107710.0,107700.0,0.442763]
[1750132214470,0.20672348,107710.0,107700.0,0.46133266]
[1750132214817,0.19743973,107710.0,107700.0,0.46133266]
[1750132215376,0.19643973,107710.0,107700.0,0.46033266]
[1750132215591,0.19543973,107710.0,107700.0,0.46233266]
[1750132215982,0.19543973,107710.0,107700.0,0.46333266]
[1750132216868,0.19543973,107710.0,107700.0,0.47261736]
[1750132217426,0.19543973,107710.0,107700.0,0.46333266]
[1750132217991,0.19543973,107710.0,107700.0,0.47261736]
[1750132219018,0.00975569,107710.0,107700.0,0.45404787]
[1750132219218,0.02832372,107710.0,107700.0,0.45404787]
[1750132219438,0.2140075,107710.0,107700.0,0.25906207]
[1750132219763,0.2140075,107710.0,107700.0,0.26834703]
[1750132219962,0.20472375,107710.0,107700.0,0.25906207]
[1750132221349,0.01903954,107710.0,107700.0,0.69751728]
[1750132221577,0.22329091,107710.0,107700.0,0.27906207]
[1750132221800,0.20472383,107710.0,107700.0,0.28834703]
[1750132222251,0.20472383,107710.0,107700.0,0.48333284]
[1750132222595,0.1954399,107710.0,107700.0,0.48333284]
[1750132223699,0.1954399,107710.0,107700.0,0.50190181]
[1750132223700,0.00975535,107710.0,107700.0,0.50190181]
[1750132223933,0.02832277,107710.0,107700.0,0.50190181]
[1750132224387,0.03760678,107710.0,107700.0,0.50190181]
[1750132224581,0.04689096,107710.0,107700.0,0.64633737]
[1750132225001,0.00047194,107710.0,107700.0,0.8605219]
[1750132225216,0.00047194,107710.0,107700.0,0.95676366]
[1750132227766,0.00047194,107710.0,107700.0,1.49676366]
[1750132228264,0.00047194,107710.0,107700.0,1.57676366]
[1750132230014,0.00047194,107710.0,107700.0,1.59676366]
[1750132231684,0.00047194,107710.0,107700.0,1.62464166]
[1750132232171,0.00047194,107710.0,107700.0,1.62764166]
[1750132232627,0.00047194,107710.0,107700.0,1.62964166]
[1750132232838,0.00047194,107710.0,107700.0,1.67020166]
[1750132233042,0.00047194,107710.0,107700.0,1.66820166]
[1750132233517,0.19689558,107750.0,107740.0,0.23689501]
[1750132233727,0.20617606,107750.0,107740.0,0.58619376]
[1750132233905,0.20617606,107750.0,107740.0,0.59547527]
[1750132234121,0.20617606,107750.0,107740.0,0.6047567]
[1750132234345,0.02056122,107750.0,107740.0,0.62331921]
[1750132234562,0.02056122,107750.0,107740.0,0.62331869]
[1750132234788,0.02056122,107750.0,107740.0,0.61417894]
[1750132235015,0.20617606,107750.0,107740.0,0.61417902]
[1750132235901,0.20717606,107750.0,107740.0,0.62346019]
[1750132236114,0.20717606,107750.0,107740.0,0.62345976]
[1750132236320,0.02156122,107750.0,107740.0,0.46049868]
[1750132236531,0.02156122,107750.0,107740.0,0.62345976]
[1750132236753,0.003,107750.0,107740.0,0.62345976]
[1750132236966,0.003,107750.0,107740.0,0.71970109]
[1750132238049,0.003,107750.0,107740.0,0.56602109]
[1750132238050,0.002,107750.0,107740.0,0.56602109]
[1750132238244,0.002,107750.0,107740.0,0.71970109]
[1750132238453,0.002,107750.0,107740.0,0.56702109]
[1750132238601,0.002,107750.0,107740.0,0.72070109]
[1750132239405,0.002,107750.0,107740.0,0.72270109]
[1750132239871,0.01128005,107750.0,107740.0,0.56902109]
[1750132240086,0.002,107750.0,107740.0,0.56902109]
[1750132240290,0.002,107750.0,107740.0,0.72266109]
[1750132241436,0.002,107750.0,107740.0,0.75042747]
[1750132241907,0.01127996,107750.0,107740.0,0.75042747]
[1750132242118,0.002,107750.0,107740.0,0.67678747]
[1750132242354,0.002,107750.0,107740.0,0.83042747]
[1750132242817,0.01127996,107750.0,107740.0,0.83042747]
[1750132243051,0.002,107750.0,107740.0,0.83042747]
[1750132244002,0.01128013,107750.0,107740.0,0.67678747]
[1750132244227,0.002,107750.0,107740.0,0.83042747]
[1750132245172,0.002,107750.0,107740.0,0.75042747]
[1750132246287,0.01128013,107750.0,107740.0,0.59678747]
[1750132246520,0.002,107750.0,107740.0,0.75042747]
[1750132247952,0.002,107750.0,107740.0,0.83042747]
[1750132249836,0.002,107750.0,107740.0,0.67678747]
[1750132250064,0.002,107750.0,107740.0,0.83038747]
[1750132250488,0.01127996,107750.0,107740.0,0.83038747]
[1750132251761,0.02056009,107750.0,107740.0,0.83038747]
[1750132251968,0.01127996,107750.0,107740.0,0.83038747]
[1750132252174,0.02984032,107750.0,107740.0,0.83038747]
[1750132252394,0.02984023,107750.0,107740.0,0.32923978]
[1750132252669,0.23737572,107750.0,107740.0,0.08314133]
[1750132253081,0.23737572,107750.0,107740.0,0.44164142]
[1750132253735,0.23737572,107750.0,107740.0,0.28804142]
[1750132253957,0.23737572,107750.0,107740.0,0.44164142]
[1750132254168,0.22137572,107750.0,107740.0,0.44164142]
[1750132254376,0.22137572,107750.0,107740.0,0.45092302]
[1750132254843,0.22137572,107750.0,107740.0,0.44164142]
[1750132255278,0.22137572,107750.0,107740.0,0.28804142]
[1750132255486,0.22137572,107750.0,107740.0,0.44164142]
[1750132257054,0.20617572,107750.0,107740.0,0.44164142]
[1750132259427,0.20617572,107750.0,107740.0,0.28804142]
[1750132259628,0.22217572,107750.0,107740.0,0.44164142]
[1750132260381,0.22217572,107750.0,107740.0,0.28804142]
[1750132260594,0.22217572,107750.0,107740.0,0.44164142]
[1750132263770,0.23797572,107750.0,107740.0,0.23674133]
[1750132264023,0.23797572,107750.0,107740.0,0.15674133]
[1750132264235,0.33421748,107750.0,107740.0,0.15674133]
[1750132265062,0.33421748,107750.0,107740.0,0.36164142]
[1750132265707,0.31841748,107750.0,107740.0,0.36164142]
[1750132267572,0.33451748,107750.0,107740.0,0.36164142]
[1750132268607,0.31841748,107750.0,107740.0,0.36164142]
[1750132268815,0.31841748,107750.0,107740.0,0.20804142]
[1750132269025,0.31841748,107750.0,107740.0,0.36164142]
[1750132274556,0.30241748,107750.0,107740.0,0.36164142]
[1750132279432,0.30241748,107750.0,107740.0,0.00314133]
[1750132279650,0.33331748,107750.0,107740.0,0.00314133]
[1750132279877,0.33331748,107750.0,107740.0,0.15670133]
[1750132280098,0.33331748,107750.0,107740.0,0.00314133]
[1750132280311,0.53821757,107750.0,107740.0,0.00314133]
[1750132280530,0.34785833,107750.0,107740.0,0.00314133]
[1750132280742,0.55275842,107750.0,107740.0,0.00314133]
[1750132281412,0.55275842,107750.0,107740.0,0.00114133]
[1750132281619,0.89275842,107750.0,107740.0,0.00014133]
[1750132282038,0.89375842,107750.0,107740.0,0.00014133]
[1750132283303,0.89275842,107750.0,107740.0,0.00014133]
[1750132283508,0.89675842,107750.0,107740.0,0.00014133]
[1750132284398,0.84541833,107750.0,107740.0,0.00014133]
[1750132285547,0.69185833,107750.0,107740.0,0.00014133]
[1750132285687,1.22563833,107750.0,107740.0,0.00014133]
[1750132288941,1.16995833,107750.0,107740.0,0.00014133]
[1750132289153,1.21043833,107750.0,107740.0,0.00014133]
[1750132289356,1.36399833,107750.0,107740.0,0.00014133]
[1750132289562,1.16995833,107750.0,107740.0,0.00014133]
[1750132289768,1.36399833,107750.0,107740.0,0.00014133]
[1750132290878,1.19473833,107750.0,107740.0,0.22084142]
[1750132291093,1.19473833,107750.0,107740.0,0.23634142]
[1750132291324,1.19473833,107750.0,107740.0,0.22084142]
[1750132291536,1.19473833,107750.0,107740.0,0.00014133]
[1750132291976,1.21053833,107750.0,107740.0,0.00014133]
[1750132294142,1.22693833,107750.0,107740.0,0.00014133]
[1750132294598,1.21053833,107750.0,107740.0,0.00014133]
[1750132298808,1.22713833,107750.0,107740.0,0.00014133]
[1750132299795,1.43203842,107750.0,107740.0,0.00014133]
[1750132300029,0.96098192,107750.0,107740.0,0.00014133]
[1750132300737,0.9887236,107750.0,107740.0,0.00014133]
[1750132300964,1.05608855,107750.0,107740.0,0.00014133]
[1750132301203,1.08397755,107750.0,107740.0,0.00014133]
[1750132301435,1.16276182,107750.0,107740.0,0.00014133]
[1750132301658,1.16176182,107750.0,107740.0,0.00014133]
[1750132301945,1.19790178,107750.0,107740.0,0.00014133]
[1750132302388,1.20190178,107750.0,107740.0,0.00014133]
[1750132302605,1.19590178,107750.0,107740.0,0.00014133]
[1750132302841,6.50680187,107750.0,107740.0,0.00014133]
[1750132303088,6.53877013,107750.0,107740.0,0.00014133]
[1750132303295,6.50163017,107750.0,107740.0,0.00014133]
[1750132303500,6.53865724,107750.0,107740.0,0.00014133]
[1750132303717,6.53265724,107750.0,107740.0,0.00014133]
[1750132303925,6.53965724,107750.0,107740.0,0.00114133]
[1750132304492,6.69321724,107750.0,107740.0,0.00114133]
[1750132304691,6.68921724,107750.0,107740.0,0.00114133]
[1750132304892,6.48431715,107750.0,107740.0,0.00114133]
[1750132305506,6.69921724,107750.0,107740.0,0.00214133]
[1750132308640,6.6435073,107750.0,107740.0,0.00214133]
[1750132308855,6.69921724,107750.0,107740.0,0.00214133]
[1750132309270,6.6435073,107750.0,107740.0,0.00214133]
[1750132310464,6.69921724,107750.0,107740.0,0.00214133]
[1750132311001,6.69921724,107750.0,107740.0,1e-08]
[1750132314405,6.69921724,107750.0,107700.0,0.002]
[1750132314406,0.54425154,107710.0,107700.0,0.002]
[1750132314628,1.16141013,107710.0,107700.0,0.002]
[1750132315070,6.4663846,107710.0,107700.0,0.002]
[1750132315284,6.2723846,107710.0,107700.0,0.002]
[1750132315507,6.4664246,107710.0,107700.0,0.002]
[1750132315750,6.4694246,107710.0,107700.0,0.00214148]
[1750132315960,6.26652451,107710.0,107700.0,0.00214148]
[1750132316172,6.08659943,107710.0,107700.0,0.00214148]
[1750132316392,6.28063943,107710.0,107700.0,0.00214148]
[1750132316606,6.27968139,107710.0,107700.0,0.00214148]
[1750132317764,6.08364139,107710.0,107700.0,0.00214148]
[1750132317976,6.27864139,107710.0,107700.0,0.00414148]
[1750132321247,6.37644139,107710.0,107700.0,0.00414148]
[1750132321455,6.27864139,107710.0,107700.0,0.00414148]
[1750132321873,1.22864139,107710.0,107700.0,0.00414148]
[1750132322997,1.27864139,107710.0,107700.0,0.00414148]
[1750132323214,6.56125768,107710.0,107700.0,0.00414148]
[1750132323469,6.36725768,107710.0,107700.0,0.00414148]
[1750132323677,6.56129768,107710.0,107700.0,0.00414148]
[1750132323880,6.56029768,107710.0,107700.0,0.00214148]
[1750132324302,6.56429768,107710.0,107700.0,0.00314148]
[1750132324524,6.55629768,107710.0,107700.0,0.00314148]
[1750132324983,6.55829768,107710.0,107700.0,0.00414148]
[1750132325193,0.80376161,107710.0,107700.0,0.00414148]
[1750132325402,1.1182455,107710.0,107700.0,0.01994148]
[1750132325610,1.1182455,107710.0,107700.0,0.00414148]
[1750132326262,1.1182455,107710.0,107700.0,0.02014148]
[1750132326681,1.1182455,107710.0,107700.0,0.00414148]
[1750132326886,1.21439472,107710.0,107700.0,0.00414148]
[1750132327359,1.21439472,107710.0,107700.0,0.02074148]
[1750132328411,1.24211092,107710.0,107700.0,0.02074148]
[1750132328872,1.24211092,107710.0,107700.0,0.03644148]
[1750132328873,0.73244076,107710.0,107700.0,0.03644148]
[1750132329115,0.35513018,107710.0,107700.0,0.03644148]
[1750132329347,0.50873018,107710.0,107700.0,0.03644148]
[1750132329552,0.86327103,107710.0,107700.0,0.03644148]
[1750132331491,0.88548033,107710.0,107700.0,0.03644148]
[1750132332124,0.86327103,107710.0,107700.0,0.03644148]
[1750132332769,0.88548437,107710.0,107700.0,0.03644148]
[1750132333537,0.88148437,107710.0,107700.0,0.03544148]
[1750132333738,0.88148437,107710.0,107700.0,0.03444148]
[1750132334079,0.88148437,107710.0,107700.0,0.03544148]
[1750132339920,1.18253368,107710.0,107700.0,0.03544148]
[1750132340107,1.19903368,107710.0,107700.0,0.00314148]
[1750132340310,1.44824997,107710.0,107700.0,0.00314148]
[1750132340552,1.5631039,107710.0,107700.0,0.00314148]
[1750132340750,6.6131039,107710.0,107700.0,0.00314148]
[1750132340921,6.38048761,107710.0,107700.0,0.00314148]
[1750132341159,6.43619755,107710.0,107700.0,0.00314148]
[1750132342086,6.64109764,107710.0,107700.0,0.00314148]
[1750132343244,6.43619755,107710.0,107700.0,0.00314148]
[1750132344105,6.64109764,107710.0,107700.0,0.00314148]
[1750132344542,6.64109764,107710.0,107680.0,0.002]
[1750132344543,6.69109764,107710.0,107680.0,0.002]
[1750132344758,0.90367574,107690.0,107680.0,0.00247194]
[1750132344975,1.1755983,107690.0,107680.0,0.00247194]
[1750132345639,1.2419983,107690.0,107680.0,0.00247194]
[1750132345857,6.32906971,107690.0,107680.0,0.00247194]
[1750132346090,6.17550971,107690.0,107680.0,0.00247194]
[1750132346325,6.40697609,107690.0,107680.0,0.00247194]
[1750132346534,6.4351624,107690.0,107680.0,0.00247194]
[1750132347180,6.4361624,107690.0,107680.0,0.00447194]
[1750132347396,6.4351624,107690.0,107680.0,0.00247194]
[1750132347886,6.4381624,107690.0,107680.0,0.00347194]
[1750132348101,6.40109099,107690.0,107680.0,0.00347194]
[1750132349576,6.43810852,107690.0,107680.0,0.00347194]
[1750132350444,6.23320843,107690.0,107680.0,0.00347194]
[1750132350667,6.43810852,107690.0,107680.0,0.00347194]
[1750132351103,6.28454852,107690.0,107680.0,0.00347194]
[1750132351310,6.50673552,107690.0,107680.0,0.00347194]
[1750132352162,6.11873636,107690.0,107680.0,0.00347194]
[1750132352367,6.35040502,107690.0,107680.0,0.00347194]
[1750132353006,6.36550502,107690.0,107680.0,0.00347194]
[1750132353865,6.31550502,107690.0,107680.0,0.00347194]
[1750132354110,6.36550502,107690.0,107680.0,0.00347194]
[1750132354284,6.46165424,107690.0,107680.0,0.00347194]
[1750132357519,1.37463671,107690.0,107680.0,0.00347194]
[1750132358151,1.35953671,107690.0,107680.0,0.00347194]
[1750132360239,1.35953671,107690.0,107680.0,0.03657194]
[1750132360240,0.38183789,107690.0,107680.0,0.03657194]
[1750132360453,1.07097764,107690.0,107680.0,0.03657194]
[1750132360696,1.09315815,107690.0,107680.0,0.03657194]
[1750132360909,1.107699,107690.0,107680.0,0.03657194]
[1750132361162,1.20400822,107690.0,107680.0,0.03657194]
[1750132361390,1.20400822,107690.0,107680.0,0.01997194]
[1750132362272,1.20400822,107690.0,107680.0,0.03537194]
[1750132363149,1.02790771,107690.0,107680.0,0.03537194]
[1750132363353,1.10782692,107690.0,107680.0,0.03537194]
[1750132364622,1.10782692,107690.0,107680.0,0.01997194]
[1750132365308,1.10782692,107690.0,107680.0,0.03537194]
[1750132365566,0.90292683,107690.0,107680.0,0.03537194]
[1750132365781,1.10782692,107690.0,107680.0,0.03537194]
[1750132366896,0.70844683,107690.0,107680.0,0.03537194]
[1750132367107,0.91334692,107690.0,107680.0,0.03537194]
[1750132367358,1.10802692,107690.0,107680.0,0.03537194]
[1750132373502,0.90312683,107690.0,107680.0,0.03537194]
[1750132373674,1.10802692,107690.0,107680.0,0.03537194]
[1750132373886,1.20417614,107690.0,107680.0,0.03537194]
[1750132374212,1.10802692,107690.0,107680.0,0.03537194]
[1750132378777,1.13577558,107690.0,107680.0,0.03537194]
[1750132381829,1.33201558,107690.0,107680.0,0.03537194]
[1750132382250,1.30426692,107690.0,107680.0,0.03537194]
[1750132382465,1.33157558,107690.0,107680.0,0.03537194]
[1750132382607,1.30382692,107690.0,107680.0,0.03537194]
[1750132383213,1.33157558,107690.0,107680.0,0.03537194]
[1750132384276,1.4171494,107690.0,107680.0,0.03537194]
[1750132385558,1.4171494,107690.0,107680.0,0.00347194]
[1750132386640,1.4171494,107690.0,107680.0,0.03517194]
[1750132388017,1.45416693,107690.0,107680.0,0.01857194]
[1750132388446,1.45416693,107690.0,107680.0,0.00347194]
[1750132389696,1.45416693,107690.0,107680.0,0.01857194]
[1750132391895,1.45416693,107690.0,107680.0,0.03367194]
[1750132392435,1.36839311,107690.0,107680.0,0.03367194]
[1750132394878,0.76457464,107690.0,107680.0,0.03367194]
[1750132395095,0.89626598,107690.0,107680.0,0.03367194]
[1750132395545,0.91080683,107690.0,107680.0,0.03367194]
[1750132395986,0.90780683,107690.0,107680.0,0.03267194]
[1750132396202,0.90780683,107690.0,107680.0,0.03367194]
[1750132397252,0.90780683,107690.0,107680.0,0.03567194]
[1750132397470,0.90880683,107690.0,107680.0,0.03567194]
[1750132398541,0.74936683,107690.0,107680.0,0.03567194]
[1750132398779,0.7271784,107690.0,107680.0,0.24057203]
[1750132398979,0.8866184,107690.0,107680.0,0.24057203]
[1750132399179,0.8866184,107690.0,107680.0,0.03567194]
[1750132399921,0.85843209,107690.0,107680.0,0.03567194]
[1750132407750,0.69899209,107690.0,107680.0,0.03567194]
[1750132408031,0.85791209,107690.0,107680.0,0.03567194]
[1750132408721,1.06281218,107690.0,107680.0,0.03567194]
[1750132408926,0.85791209,107690.0,107680.0,0.03567194]
[1750132409137,0.65607209,107690.0,107680.0,0.03567194]
[1750132409349,0.85771209,107690.0,107680.0,0.03567194]
[1750132409653,0.65607209,107690.0,107680.0,0.03567194]
[1750132409839,0.65607209,107690.0,107680.0,0.24057203]
[1750132409840,0.68445124,107690.0,107680.0,0.24057203]
[1750132410053,0.84313124,107690.0,107680.0,0.24057203]
[1750132410260,0.0195707,107690.0,107680.0,0.45416682]
[1750132410470,0.01028522,107690.0,107680.0,0.45416682]
[1750132410675,0.02885644,107690.0,107680.0,0.61280682]
[1750132410879,0.03814226,107690.0,107680.0,0.62209307]
[1750132411095,0.02885635,107690.0,107680.0,0.62009307]
[1750132411286,0.00928505,107700.0,107680.0,0.62009307]
[1750132411495,0.01957052,107690.0,107680.0,0.37770595]
[1750132411702,0.01957052,107690.0,107680.0,0.37470595]
[1750132411915,0.01957052,107690.0,107680.0,0.40690595]
[1750132411916,0.01957035,107690.0,107680.0,0.40690595]